{"text_format":"1","workbook":"xlsx","n_sheets":3,"sheets":["Tabelle1","Tabelle2","Tabelle3"],"not_rendered":{"charts":0,"images":52,"macros":0,"external_links":1,"defined_names":0,"comments":0,"pivot_tables":0},"unopened":[],"bounds":{"document_bytes":16777216,"sheet_cells":100000,"rows_first":2000,"rows_last":500,"rows_between":2000,"halvings":0,"cell_chars":16384,"cell_head_chars":4096},"cells_cut":0,"cells_raw":0,"read":"whole","date_system":"1900"}

{"sheet":"Tabelle1","index":0,"n_rows":105,"n_cols":7,"rows_kept":105,"cut":false,"hidden":false,"merged":[]}
[]
[null,"Frische Sandwiches"]
[null,null,null,null,null,"Bemerkung"]
[null,"Name",null,null,"Signatur","Bestellung Mo-Fr bis 13.30 Uhr  "]
[null,"Telefon",null,null,null,"Bitte Freitag für Sa,So,Mo bestellen"]
[null,"Datum und Abholzeit",null,null,null,"Bestellung vor Feiertagen bis 12.00 Uhr"]
[null,"Backmarkt Kontakt","  Tel. 044 755 27 55   oder   backmarkt@hiestand.ch",null,null,"           Für Intern: KD 85862"]
[]
[null,null,"Art.-Nr.","Bezeichnung","MHD","Preis","Bestellung \nStück"]
[null,null,850938,{"$f":"VLOOKUP(C10,[1]Tabelle1!$1:$1048576,2,FALSE)","v":"Laugenzöpfli - Scharfer Salami"},"Gekühlt 2 Tage haltbar",5.9]
[null,null,850924,{"$f":"VLOOKUP(C11,[1]Tabelle1!$1:$1048576,2,FALSE)","v":"Laugenzöpfli - Frischkäse & Schnittlauch"},"Gekühlt 1 Tag haltbar",5.5]
[null,null,845716,{"$f":"VLOOKUP(C12,[1]Tabelle1!$1:$1048576,2,FALSE)","v":"Laugenzöpfli - Thon"},"Gekühlt 1 Tag haltbar",6.2]
[null,null,845712,{"$f":"VLOOKUP(C13,[1]Tabelle1!$1:$1048576,2,FALSE)","v":"Laugenzöpfli - Eiersalat"},"Gekühlt 1 Tag haltbar",6.2]
[null,null,845699,{"$f":"VLOOKUP(C14,[1]Tabelle1!$1:$1048576,2,FALSE)","v":"Butterbrezel - Salami"},"Gekühlt 2 Tage haltbar",4.7]
[null,null,845691,{"$f":"VLOOKUP(C15,[1]Tabelle1!$1:$1048576,2,FALSE)","v":"Butterbrezel - Fleischkäse"},"Gekühlt 2 Tage haltbar",4.7]
[null,null,845700,{"$f":"VLOOKUP(C16,[1]Tabelle1!$1:$1048576,2,FALSE)","v":"Butterbrezel - Schinken"},"Gekühlt 2 Tage haltbar",4.7]
[null,null,845692,{"$f":"VLOOKUP(C17,[1]Tabelle1!$1:$1048576,2,FALSE)","v":"Butterbrezel - Schweizer Hartkäse"},"Gekühlt 2 Tage haltbar",4.7]
[null,null,845736,{"$f":"VLOOKUP(C18,[1]Tabelle1!$1:$1048576,2,FALSE)","v":"Weggli - Salami"},"Gekühlt 2 Tage haltbar",5.2]
[null,null,845740,{"$f":"VLOOKUP(C19,[1]Tabelle1!$1:$1048576,2,FALSE)","v":"Smoked Craft Brötli - Schinken"},"Gekühlt 2 Tage haltbar",5.2]
[]
[null,"Frische Sandwiches"]
[null,null,null,null,null,"Bemerkung"]
[null,"Name",null,null,"Signatur","Bestellung Mo-Fr bis 13.30 Uhr  "]
[null,"Telefon",null,null,null,"Bitte Freitag für Sa,So,Mo bestellen"]
[null,"Datum und Abholzeit",null,null,null,"Bestellung vor Feiertagen bis 12.00 Uhr"]
[null,"Backmarkt Kontakt","  Tel. 044 755 27 55   oder   backmarkt@hiestand.ch",null,null,"           Für Intern: KD 85862"]
[]
[null,null,"Art.-Nr.","Bezeichnung","MHD","Preis","Bestellung \nStück"]
[null,null,850922,{"$f":"VLOOKUP(C29,[1]Tabelle1!$1:$1048576,2,FALSE)","v":"Sourdough - Mashed Greens"},"Gekühlt 1 Tag haltbar",4.5]
[null,null,845739,{"$f":"VLOOKUP(C30,[1]Tabelle1!$1:$1048576,2,FALSE)","v":"Laugen Bun - Brie"},"Gekühlt 2 Tage haltbar",5.2]
[null,null,843555,{"$f":"VLOOKUP(C31,[1]Tabelle1!$1:$1048576,2,FALSE)","v":"Laugensandwich mit Fleischkäse"},"Gekühlt 2 Tage haltbar",6.2]
[null,null,843552,{"$f":"VLOOKUP(C32,[1]Tabelle1!$1:$1048576,2,FALSE)","v":"Laugensandwich mit Hartkäse"},"Gekühlt 2 Tage haltbar",6.2]
[null,null,843551,{"$f":"VLOOKUP(C33,[1]Tabelle1!$1:$1048576,2,FALSE)","v":"Laugensandwich mit Salami"},"Gekühlt 2 Tage haltbar",6.2]
[null,null,843553,{"$f":"VLOOKUP(C34,[1]Tabelle1!$1:$1048576,2,FALSE)","v":"Laugensandwich mit Schinken"},"Gekühlt 2 Tage haltbar",6.2]
[]
[null,"Frische Sandwiches"]
[null,null,null,null,null,"Bemerkung"]
[null,"Name",null,null,"Signatur","Bestellung Mo-Fr bis 13.30 Uhr  "]
[null,"Telefon",null,null,null,"Bitte Freitag für Sa,So,Mo bestellen"]
[null,"Datum und Abholzeit",null,null,null,"Bestellung vor Feiertagen bis 12.00 Uhr"]
[null,"Backmarkt Kontakt","  Tel. 044 755 27 55   oder   backmarkt@hiestand.ch",null,null,"           Für Intern: KD 85862"]
[]
[null,null,"Art.-Nr.","Bezeichnung","MHD","Preis","Bestellung \nStück"]
[null,null,845783,{"$f":"VLOOKUP(C44,[1]Tabelle1!$1:$1048576,2,FALSE)","v":"Pariserli - Schweizer Hartkäse"},"Gekühlt 1 Tag haltbar",6.2]
[null,null,845785,{"$f":"VLOOKUP(C45,[1]Tabelle1!$1:$1048576,2,FALSE)","v":"Pariserli - Schinken"},"Gekühlt 1 Tag haltbar",6.2]
[null,null,845784,{"$f":"VLOOKUP(C46,[1]Tabelle1!$1:$1048576,2,FALSE)","v":"Pariserli - Salami"},"Gekühlt 1 Tag haltbar",6.2]
[null,null,845781,{"$f":"VLOOKUP(C47,[1]Tabelle1!$1:$1048576,2,FALSE)","v":"Pariserli - Fleischkäse"},"Gekühlt 1 Tag haltbar",6.2]
[null,null,850930,{"$f":"VLOOKUP(C48,[1]Tabelle1!$1:$1048576,2,FALSE)","v":"Steinofenbaguette - Roastbeef & Tartare"},"Gekühlt 1 Tag haltbar",7.5]
[]
[null,"Frische Sandwiches"]
[null,null,null,null,null,"Bemerkung"]
[null,"Name",null,null,"Signatur","Bestellung Mo-Fr bis 13.30 Uhr  "]
[null,"Telefon",null,null,null,"Bitte Freitag für Sa,So,Mo bestellen"]
[null,"Datum und Abholzeit",null,null,null,"Bestellung vor Feiertagen bis 12.00 Uhr"]
[null,"Backmarkt Kontakt","  Tel. 044 755 27 55   oder   backmarkt@hiestand.ch",null,null,"           Für Intern: KD 85862"]
[]
[null,null,"Art.-Nr.","Bezeichnung","MHD","Preis","Bestellung \nStück"]
[null,null,850932,{"$f":"VLOOKUP(C58,[1]Tabelle1!$1:$1048576,2,FALSE)","v":"Steinofenbaguette - Caprese"},"Gekühlt 1 Tag haltbar",7.5]
[null,null,845735,{"$f":"VLOOKUP(C59,[1]Tabelle1!$1:$1048576,2,FALSE)","v":"Zwirbelino - Truten & Schweizer Hartkäse"},"Gekühlt 1 Tag haltbar",6.8]
[null,null,847474,{"$f":"VLOOKUP(C60,[1]Tabelle1!$1:$1048576,2,FALSE)","v":"Zwirbelino - Brie & Aprikosen"},"Gekühlt 1 Tag haltbar",6.8]
[null,null,847477,{"$f":"VLOOKUP(C61,[1]Tabelle1!$1:$1048576,2,FALSE)","v":"Zwirbelino - Beetroot Hummus & Avocado"},"Gekühlt 1 Tag haltbar",6.8]
[null,null,847479,{"$f":"VLOOKUP(C62,[1]Tabelle1!$1:$1048576,2,FALSE)","v":"Zwirbelino - Chicken & Avocado"},"Gekühlt 1 Tag haltbar",6.8]
[null,null,847457,{"$f":"VLOOKUP(C63,[1]Tabelle1!$1:$1048576,2,FALSE)","v":"Laugenecke - Schinken & Hartkäse"},"Gekühlt 1 Tag haltbar",6.8]
[null,null,847458,{"$f":"VLOOKUP(C64,[1]Tabelle1!$1:$1048576,2,FALSE)","v":"Laugenecke - Rauchlachs & Honig-Senf"},"Gekühlt 1 Tag haltbar",7.1]
[null,null,849844,{"$f":"VLOOKUP(C65,[1]Tabelle1!$1:$1048576,2,FALSE)","v":"Laugenecke - Ei und Avocado"},"Gekühlt 1 Tag haltbar",6.8]
[null,null,845722,{"$f":"VLOOKUP(C66,[1]Tabelle1!$1:$1048576,2,FALSE)","v":"Körnerecke - Antipasti & Mozzarella"},"Gekühlt 1 Tag haltbar",6.8]
[null,null,850926,{"$f":"VLOOKUP(C67,[1]Tabelle1!$1:$1048576,2,FALSE)","v":"Mais-Triangolo - Butchered Cubano"},"Gekühlt 1 Tag haltbar",6.5]
[null,null,850928,{"$f":"VLOOKUP(C68,[1]Tabelle1!$1:$1048576,2,FALSE)","v":"Mais-Triangolo - Planted Cubano"},"Gekühlt 1 Tag haltbar",6.5]
[]
[null,"Frische Sandwiches"]
[null,null,null,null,null,"Bemerkung"]
[null,"Name",null,null,"Signatur","Bestellung Mo-Fr bis 13.30 Uhr  "]
[null,"Telefon",null,null,null,"Bitte Freitag für Sa,So,Mo bestellen"]
[null,"Datum und Abholzeit",null,null,null,"Bestellung vor Feiertagen bis 12.00 Uhr"]
[null,"Backmarkt Kontakt","  Tel. 044 755 27 55   oder   backmarkt@hiestand.ch",null,null,"           Für Intern: KD 85862"]
[]
[null,null,"Art.-Nr.","Bezeichnung","MHD","Preis","Bestellung \nStück"]
[null,null,845702,{"$f":"VLOOKUP(C78,[1]Tabelle1!$1:$1048576,2,FALSE)","v":"Fuschtbrot - Fleischkäse"},"Gekühlt 2 Tage haltbar",5.2]
[null,null,845703,{"$f":"VLOOKUP(C79,[1]Tabelle1!$1:$1048576,2,FALSE)","v":"Fuschtbrot - Schweizer Hartkäse"},"Gekühlt 2 Tage haltbar",5.2]
[null,null,845705,{"$f":"VLOOKUP(C80,[1]Tabelle1!$1:$1048576,2,FALSE)","v":"Fuschtbrot - Salami"},"Gekühlt 2 Tage haltbar",5.2]
[null,null,845708,{"$f":"VLOOKUP(C81,[1]Tabelle1!$1:$1048576,2,FALSE)","v":"Fuschtbrot - Schinken"},"Gekühlt 2 Tage haltbar",5.2]
[null,null,845751,{"$f":"VLOOKUP(C82,[1]Tabelle1!$1:$1048576,2,FALSE)","v":"Wrap Indian - Tofu & Randen"},"Gekühlt 2 Tage haltbar",6.8]
[null,null,845752,{"$f":"VLOOKUP(C83,[1]Tabelle1!$1:$1048576,2,FALSE)","v":"Wrap Vietnam - Chicken & Green Curry"},"Gekühlt 2 Tage haltbar",6.8]
[null,null,845748,{"$f":"VLOOKUP(C84,[1]Tabelle1!$1:$1048576,2,FALSE)","v":"Wrap TexMex - Pulled Beef & Guacamole"},"Gekühlt 2 Tage haltbar",6.8]
[null,null,849862,{"$f":"VLOOKUP(C85,[1]Tabelle1!$1:$1048576,2,FALSE)","v":"Wrap Korean - Salmon & Radish"},"Gekühlt 2 Tage haltbar",6.8]
[null,null,848820,{"$f":"VLOOKUP(C86,[1]Tabelle1!$1:$1048576,2,FALSE)","v":"Wrap Beyond Meat® & Pfirsich"},"Gekühlt 2 Tage haltbar",6.8]
[null,null,850936,{"$f":"VLOOKUP(C87,[1]Tabelle1!$1:$1048576,2,FALSE)","v":"Levant Wrap - Wholegrain & Babaghanoush"},"Gekühlt 1 Tag haltbar",6.8]
[]
[null,"Frische Sandwiches"]
[null,null,null,null,null,"Bemerkung"]
[null,"Name",null,null,"Signatur","Bestellung Mo-Fr bis 13.30 Uhr  "]
[null,"Telefon",null,null,null,"Bitte Freitag für Sa,So,Mo bestellen"]
[null,"Datum und Abholzeit",null,null,null,"Bestellung vor Feiertagen bis 12.00 Uhr"]
[null,"Backmarkt Kontakt","  Tel. 044 755 27 55   oder   backmarkt@hiestand.ch",null,null,"           Für Intern: KD 85862"]
[]
[null,null,"Art.-Nr.","Bezeichnung","MHD","Preis","Bestellung \nStück"]
[null,null,845743,{"$f":"VLOOKUP(C97,[1]Tabelle1!$1:$1048576,2,FALSE)","v":"Mezzaluna - Antipasti & Rohschinken"},"Gekühlt 1 Tag haltbar",6.8]
[null,null,850051,{"$f":"VLOOKUP(C98,[1]Tabelle1!$1:$1048576,2,FALSE)","v":"Fladenbrot - Schinken & Provolone"},"Gekühlt 2 Tage haltbar",7]
[null,null,847441,{"$f":"VLOOKUP(C99,[1]Tabelle1!$1:$1048576,2,FALSE)","v":"Bagel - North Pole"},"Gekühlt 1 Tag haltbar",6.5]
[null,null,847442,{"$f":"VLOOKUP(C100,[1]Tabelle1!$1:$1048576,2,FALSE)","v":"Bagel - Chinatown"},"Gekühlt 1 Tag haltbar",6.5]
[null,null,847443,{"$f":"VLOOKUP(C101,[1]Tabelle1!$1:$1048576,2,FALSE)","v":"Bagel - San Francisco"},"Gekühlt 1 Tag haltbar",6.5]
[null,null,847454,{"$f":"VLOOKUP(C102,[1]Tabelle1!$1:$1048576,2,FALSE)","v":"Bagel - Orient"},"Gekühlt 1 Tag haltbar",6.5]
[null,null,847456,{"$f":"VLOOKUP(C103,[1]Tabelle1!$1:$1048576,2,FALSE)","v":"Ciabatta - Pouletschnitzel Cocktail"},"Gekühlt 1 Tag haltbar",6.8]
[null,null,852313,"Steinofenbaguette Pork Belly&Smoky Pumpkin","Gekühlt 1 Tag haltbar",7.5]
[null,null,852322,"Steinofenbaguette Porcino Humus&Smoky Pumpkin","Gekühlt 1 Tag haltbar",7.5]

{"sheet":"Tabelle2","index":1,"n_rows":0,"n_cols":0,"rows_kept":0,"cut":false,"hidden":false,"merged":[]}

{"sheet":"Tabelle3","index":2,"n_rows":0,"n_cols":0,"rows_kept":0,"cut":false,"hidden":false,"merged":[]}